[Event "Titled Tuesday Blitz April 19 Early 2022"]
[White "Belozerov, Andrei"]
[Black "Zemlyanskii, Ivan"]
[WhiteFideId "4120213"]
[BlackFideId "24249971"]
[WhiteElo "2320"]
[BlackElo "1759"]
[Result "1-0"]
[Round "05"]
[TimeControl "180+1"]
[Date "2022.04.19"]
[WhiteClock "0:00:31"]
[BlackClock "0:00:09"]

1. e4 {[%clk 0:03:00]}  c5 {[%clk 0:02:59]} 2. Nf3 {[%clk 0:03:00]}  d6 {[%clk 0:02:59]} 3. d4 {[%clk 0:03:01]}  cxd4 {[%clk 0:02:58]} 4. Nxd4 {[%clk 0:03:02]}  Nf6 {[%clk 0:02:58]} 5. Nc3 {[%clk 0:03:02]}  a6 {[%clk 0:02:58]} 6. Be3 {[%clk 0:03:02]}  e5 {[%clk 0:02:57]} 7. Nb3 {[%clk 0:03:02]}  Be6 {[%clk 0:02:57]} 8. f3 {[%clk 0:03:02]}  h5 {[%clk 0:02:57]} 9. Nd5 {[%clk 0:03:02]}  Bxd5 {[%clk 0:02:55]} 10. exd5 {[%clk 0:03:02]}  Nbd7 {[%clk 0:02:55]} 11. Qd2 {[%clk 0:03:01]}  b6 {[%clk 0:02:49]} 12. O-O-O {[%clk 0:02:57]}  Qc7 {[%clk 0:02:40]} 13. Kb1 {[%clk 0:02:57]}  Be7 {[%clk 0:02:37]} 14. Be2 {[%clk 0:02:49]}  Nc5 {[%clk 0:02:15]} 15. g4 {[%clk 0:02:23]}  hxg4 {[%clk 0:02:05]} 16. fxg4 {[%clk 0:02:23]}  Nfe4 {[%clk 0:02:01]} 17. Qb4 {[%clk 0:02:21]}  Rh3 {[%clk 0:01:48]} 18. Nxc5 {[%clk 0:02:13]}  Rxe3 {[%clk 0:01:21]} 19. Nxe4 {[%clk 0:02:03]}  Rxe2 {[%clk 0:01:20]} 20. Nc3 {[%clk 0:01:48]}  Rf2 {[%clk 0:01:16]} 21. Rdf1 {[%clk 0:01:46]}  Rxf1+ {[%clk 0:01:04]} 22. Rxf1 {[%clk 0:01:45]}  Kf8 {[%clk 0:01:03]} 23. Qe4 {[%clk 0:01:39]}  Kg8 {[%clk 0:01:03]} 24. h4 {[%clk 0:01:39]}  b5 {[%clk 0:00:53]} 25. g5 {[%clk 0:01:38]}  Rf8 {[%clk 0:00:48]} 26. Qf3 {[%clk 0:01:34]}  Qc4 {[%clk 0:00:41]} 27. Ne4 {[%clk 0:01:28]}  f5 {[%clk 0:00:22]} 28. gxf6 {[%clk 0:01:28]}  Bxf6 {[%clk 0:00:22]} 29. b3 {[%clk 0:01:23]}  Qc7 {[%clk 0:00:19]} 30. Qg4 {[%clk 0:01:21]}  Qe7 {[%clk 0:00:18]} 31. h5 {[%clk 0:01:19]}  Bh4 {[%clk 0:00:16]} 32. Rxf8+ {[%clk 0:01:16]}  Kxf8 {[%clk 0:00:17]} 33. Qc8+ {[%clk 0:01:13]}  Kf7 {[%clk 0:00:15]} 34. Qxa6 {[%clk 0:01:13]}  Qc7 {[%clk 0:00:12]} 35. Qxd6 {[%clk 0:01:10]}  Qa5 {[%clk 0:00:10]} 36. b4 {[%clk 0:00:53]}  Qa3 {[%clk 0:00:10]} 37. c3 {[%clk 0:00:44]}  Qa4 {[%clk 0:00:09]} 38. Qg6+ {[%clk 0:00:41]}  Kf8 {[%clk 0:00:09]} 39. Qf5+ {[%clk 0:00:40]}  Kg8 {[%clk 0:00:09]} 40. Qg4 {[%clk 0:00:38]}  Be1 {[%clk 0:00:08]} 41. h6 {[%clk 0:00:38]}  Qa7 {[%clk 0:00:05]} 42. Qxg7+ {[%clk 0:00:37]}  Qxg7 {[%clk 0:00:06]} 43. hxg7 {[%clk 0:00:37]}  Kxg7 {[%clk 0:00:07]} 44. Kc2 {[%clk 0:00:37]}  Kf7 {[%clk 0:00:06]} 45. Nd6+ {[%clk 0:00:37]}  Ke7 {[%clk 0:00:07]} 46. Nxb5 {[%clk 0:00:37]}  e4 {[%clk 0:00:07]} 47. Kd1 {[%clk 0:00:34]}  Bf2 {[%clk 0:00:07]} 48. Ke2 {[%clk 0:00:34]}  Bg1 {[%clk 0:00:07]} 49. a4 {[%clk 0:00:31]}  Kf6 {[%clk 0:00:07]} 50. a5 {[%clk 0:00:30]}  Ke5 {[%clk 0:00:07]} 51. d6 {[%clk 0:00:31]}  Ke6 {[%clk 0:00:08]} 52. a6 {[%clk 0:00:30]}  Bb6 {[%clk 0:00:08]} 53. a7 {[%clk 0:00:30]}  Bxa7 {[%clk 0:00:08]} 54. Nxa7 {[%clk 0:00:31]}  Kxd6 {[%clk 0:00:09]} 55. Nb5+ {[%clk 0:00:31]}  Kd5 {[%clk 0:00:10]} 56. Na3 {[%clk 0:00:31]}  Kc6 {[%clk 0:00:09]} 57. Ke3 {[%clk 0:00:31]} 1-0


[Site "https://www.chess.com"]

[Event "Titled Tuesday Blitz April 19 Early 2022"]
[White "Buchenau, Frank"]
[Black "Dang, Hoang Son"]
[WhiteFideId "4604350"]
[BlackFideId "12402435"]
[WhiteElo "2193"]
[BlackElo "2252"]
[Result "0-1"]
[Round "05"]
[TimeControl "180+1"]
[Date "2022.04.19"]
[WhiteClock "0:00:01"]
[BlackClock "0:00:12"]

1. e4 {[%clk 0:03:00]}  e5 {[%clk 0:02:59]} 2. Bc4 {[%clk 0:03:00]}  Nf6 {[%clk 0:02:59]} 3. d3 {[%clk 0:03:00]}  Bc5 {[%clk 0:02:58]} 4. Nf3 {[%clk 0:03:01]}  d6 {[%clk 0:02:59]} 5. O-O {[%clk 0:03:01]}  O-O {[%clk 0:02:59]} 6. c3 {[%clk 0:03:01]}  h6 {[%clk 0:02:59]} 7. Nbd2 {[%clk 0:03:00]}  Nc6 {[%clk 0:02:55]} 8. Re1 {[%clk 0:03:00]}  a5 {[%clk 0:02:52]} 9. Bb5 {[%clk 0:02:56]}  Ne7 {[%clk 0:02:52]} 10. Nf1 {[%clk 0:02:55]}  c6 {[%clk 0:02:50]} 11. Ba4 {[%clk 0:02:54]}  Bb6 {[%clk 0:02:49]} 12. Ng3 {[%clk 0:02:51]}  Ng6 {[%clk 0:02:48]} 13. d4 {[%clk 0:02:49]}  Bg4 {[%clk 0:02:46]} 14. Be3 {[%clk 0:02:47]}  Re8 {[%clk 0:02:38]} 15. h3 {[%clk 0:02:46]}  exd4 {[%clk 0:02:26]} 16. cxd4 {[%clk 0:02:42]}  Bxf3 {[%clk 0:02:10]} 17. Qxf3 {[%clk 0:02:41]}  Nh4 {[%clk 0:02:04]} 18. Qd1 {[%clk 0:02:06]}  Nxe4 {[%clk 0:01:57]} 19. Nxe4 {[%clk 0:02:06]}  Rxe4 {[%clk 0:01:58]} 20. Bc2 {[%clk 0:02:02]}  Re8 {[%clk 0:01:46]} 21. Qd3 {[%clk 0:01:50]}  Ng6 {[%clk 0:01:46]} 22. Qf5 {[%clk 0:01:20]}  d5 {[%clk 0:01:41]} 23. Qg4 {[%clk 0:01:00]}  Qf6 {[%clk 0:01:37]} 24. g3 {[%clk 0:00:54]}  Re7 {[%clk 0:01:33]} 25. h4 {[%clk 0:00:52]}  Rae8 {[%clk 0:01:26]} 26. Kg2 {[%clk 0:00:49]}  Nf8 {[%clk 0:00:43]} 27. Rad1 {[%clk 0:00:45]}  g6 {[%clk 0:00:40]} 28. h5 {[%clk 0:00:39]}  g5 {[%clk 0:00:37]} 29. Bf5 {[%clk 0:00:21]}  Ne6 {[%clk 0:00:33]} 30. Rf1 {[%clk 0:00:15]}  Ng7 {[%clk 0:00:31]} 31. Bc2 {[%clk 0:00:13]}  Qe6 {[%clk 0:00:29]} 32. Qxe6 {[%clk 0:00:10]}  Rxe6 {[%clk 0:00:29]} 33. Rd3 {[%clk 0:00:08]}  Bc7 {[%clk 0:00:19]} 34. Rb3 {[%clk 0:00:07]}  b5 {[%clk 0:00:19]} 35. g4 {[%clk 0:00:06]}  Bf4 {[%clk 0:00:16]} 36. Rc3 {[%clk 0:00:04]}  Rf6 {[%clk 0:00:15]} 37. a4 {[%clk 0:00:01]}  b4 {[%clk 0:00:15]} 38. Rc5 {[%clk 0:00:01]}  Bc7 {[%clk 0:00:12]} 0-1


[Site "https://www.chess.com"]

[Event "Titled Tuesday Blitz April 19 Early 2022"]
[White "Costachi, Mihnea"]
[Black "Shandrygin, Nikita"]
[WhiteFideId "1217518"]
[BlackFideId "24198668"]
[WhiteElo "2476"]
[BlackElo "2323"]
[Result "0-1"]
[Round "05"]
[TimeControl "180+1"]
[Date "2022.04.19"]
[WhiteClock "0:00:52"]
[BlackClock "0:00:12"]

1. e4 {[%clk 0:03:00]}  c5 {[%clk 0:02:58]} 2. Nf3 {[%clk 0:02:56]}  e6 {[%clk 0:02:57]} 3. b3 {[%clk 0:02:55]}  b6 {[%clk 0:02:57]} 4. Bb2 {[%clk 0:02:55]}  Bb7 {[%clk 0:02:54]} 5. d3 {[%clk 0:02:56]}  d5 {[%clk 0:02:46]} 6. Nbd2 {[%clk 0:02:55]}  Nc6 {[%clk 0:02:43]} 7. g3 {[%clk 0:02:52]}  Nf6 {[%clk 0:02:43]} 8. Bg2 {[%clk 0:02:53]}  Be7 {[%clk 0:02:43]} 9. O-O {[%clk 0:02:53]}  O-O {[%clk 0:02:43]} 10. Qe2 {[%clk 0:02:54]}  Nb4 {[%clk 0:02:27]} 11. Rfc1 {[%clk 0:02:44]}  dxe4 {[%clk 0:02:08]} 12. Nxe4 {[%clk 0:02:42]}  Nc6 {[%clk 0:01:50]} 13. Re1 {[%clk 0:02:40]}  Nd5 {[%clk 0:01:44]} 14. Ne5 {[%clk 0:02:35]}  Nd4 {[%clk 0:01:41]} 15. Qd2 {[%clk 0:02:30]}  f6 {[%clk 0:01:33]} 16. Nf3 {[%clk 0:02:30]}  Nxf3+ {[%clk 0:01:25]} 17. Bxf3 {[%clk 0:02:30]}  e5 {[%clk 0:01:23]} 18. c4 {[%clk 0:02:23]}  Nb4 {[%clk 0:01:14]} 19. Nxf6+ {[%clk 0:02:23]}  gxf6 {[%clk 0:00:37]} 20. Bxb7 {[%clk 0:02:24]}  Rb8 {[%clk 0:00:37]} 21. Be4 {[%clk 0:02:24]}  f5 {[%clk 0:00:36]} 22. Bg2 {[%clk 0:02:22]}  e4 {[%clk 0:00:35]} 23. d4 {[%clk 0:02:19]}  Bf6 {[%clk 0:00:32]} 24. Bxe4 {[%clk 0:02:10]}  fxe4 {[%clk 0:00:22]} 25. Rxe4 {[%clk 0:02:11]}  Nc6 {[%clk 0:00:19]} 26. d5 {[%clk 0:02:10]}  Bxb2 {[%clk 0:00:17]} 27. Qxb2 {[%clk 0:02:08]}  Nd4 {[%clk 0:00:17]} 28. f4 {[%clk 0:01:58]}  Qf6 {[%clk 0:00:17]} 29. Kg2 {[%clk 0:01:58]}  Rbe8 {[%clk 0:00:16]} 30. Rae1 {[%clk 0:01:59]}  Rxe4 {[%clk 0:00:15]} 31. Rxe4 {[%clk 0:02:00]}  Qg6 {[%clk 0:00:16]} 32. Re5 {[%clk 0:01:53]}  Rxf4 {[%clk 0:00:14]} 33. d6 {[%clk 0:01:49]}  Rf7 {[%clk 0:00:10]} 34. Qd2 {[%clk 0:01:45]}  Qxd6 {[%clk 0:00:09]} 35. Qg5+ {[%clk 0:01:40]}  Qg6 {[%clk 0:00:09]} 36. Re8+ {[%clk 0:01:31]}  Kg7 {[%clk 0:00:09]} 37. Qe5+ {[%clk 0:01:23]}  Qf6 {[%clk 0:00:09]} 38. Qxf6+ {[%clk 0:01:17]}  Kxf6 {[%clk 0:00:10]} 39. Kf2 {[%clk 0:01:12]}  Re7 {[%clk 0:00:11]} 40. Rf8+ {[%clk 0:01:09]}  Kg7 {[%clk 0:00:11]} 41. Ra8 {[%clk 0:01:10]}  Re2+ {[%clk 0:00:12]} 42. Kg1 {[%clk 0:01:09]}  Rxa2 {[%clk 0:00:13]} 43. h4 {[%clk 0:01:09]}  Nf3+ {[%clk 0:00:13]} 44. Kf1 {[%clk 0:01:09]}  Nd2+ {[%clk 0:00:13]} 45. Ke2 {[%clk 0:01:08]}  Nxb3+ {[%clk 0:00:14]} 46. Ke3 {[%clk 0:01:09]}  Nd4 {[%clk 0:00:15]} 47. g4 {[%clk 0:01:09]}  h6 {[%clk 0:00:15]} 48. Ke4 {[%clk 0:01:08]}  Ra4 {[%clk 0:00:16]} 49. Ke5 {[%clk 0:01:08]}  Rxc4 {[%clk 0:00:14]} 50. Rxa7+ {[%clk 0:01:07]}  Kg6 {[%clk 0:00:15]} 51. h5+ {[%clk 0:01:03]}  Kg5 {[%clk 0:00:14]} 52. Rg7+ {[%clk 0:01:03]}  Kh4 {[%clk 0:00:15]} 53. Rg6 {[%clk 0:01:04]}  Nf3+ {[%clk 0:00:14]} 54. Kf5 {[%clk 0:01:05]}  b5 {[%clk 0:00:09]} 55. Rb6 {[%clk 0:01:01]}  b4 {[%clk 0:00:09]} 56. Rxh6 {[%clk 0:01:00]}  Rxg4 {[%clk 0:00:08]} 57. Rh8 {[%clk 0:00:59]}  b3 {[%clk 0:00:09]} 58. Rb8 {[%clk 0:00:59]}  Rb4 {[%clk 0:00:09]} 59. Rg8 {[%clk 0:00:52]}  b2 {[%clk 0:00:09]} 60. h6 {[%clk 0:00:52]}  b1=Q+ {[%clk 0:00:09]} 61. Kf6 {[%clk 0:00:53]}  Qb2+ {[%clk 0:00:09]} 62. Kg6 {[%clk 0:00:52]}  Ne5+ {[%clk 0:00:09]} 63. Kh7 {[%clk 0:00:53]}  Qc2+ {[%clk 0:00:09]} 64. Kh8 {[%clk 0:00:53]}  Nf7+ {[%clk 0:00:08]} 65. Kg7 {[%clk 0:00:52]}  Rb7 {[%clk 0:00:09]} 66. Kf8 {[%clk 0:00:52]}  Rb8+ {[%clk 0:00:08]} 67. Kxf7 {[%clk 0:00:50]}  Rxg8 {[%clk 0:00:09]} 68. Kxg8 {[%clk 0:00:51]}  Qg6+ {[%clk 0:00:10]} 69. Kh8 {[%clk 0:00:52]}  Qxh6+ {[%clk 0:00:10]} 70. Kg8 {[%clk 0:00:52]}  Qd6 {[%clk 0:00:11]} 71. Kh7 {[%clk 0:00:52]}  c4 {[%clk 0:00:12]} 0-1


[Site "https://www.chess.com"]

[Event "Titled Tuesday Blitz April 19 Early 2022"]
[White "Cunha, Lucas Aguiar"]
[Black "Sjoberg, Isak"]
[WhiteFideId "2125404"]
[BlackFideId "1521640"]
[WhiteElo "2361"]
[BlackElo "2016"]
[Result "0-1"]
[Round "05"]
[TimeControl "180+1"]
[Date "2022.04.19"]
[WhiteClock "0:00:02"]
[BlackClock "0:00:16"]

1. e4 {[%clk 0:02:52]}  c5 {[%clk 0:02:58]} 2. Nf3 {[%clk 0:02:46]}  d6 {[%clk 0:02:58]} 3. d4 {[%clk 0:02:44]}  cxd4 {[%clk 0:02:59]} 4. Qxd4 {[%clk 0:02:44]}  Nf6 {[%clk 0:02:56]} 5. e5 {[%clk 0:02:35]}  Nc6 {[%clk 0:02:21]} 6. Bb5 {[%clk 0:02:23]}  Qa5+ {[%clk 0:02:21]} 7. Nc3 {[%clk 0:02:16]}  Qxb5 {[%clk 0:02:22]} 8. Nxb5 {[%clk 0:02:15]}  Nxd4 {[%clk 0:02:22]} 9. Nfxd4 {[%clk 0:02:11]}  dxe5 {[%clk 0:02:23]} 10. Nc7+ {[%clk 0:02:03]}  Kd8 {[%clk 0:02:22]} 11. Ndb5 {[%clk 0:01:57]}  Rb8 {[%clk 0:02:10]} 12. Be3 {[%clk 0:01:50]}  a6 {[%clk 0:02:04]} 13. Ba7 {[%clk 0:01:19]}  axb5 {[%clk 0:01:48]} 14. Bxb8 {[%clk 0:01:19]}  Bd7 {[%clk 0:01:40]} 15. Na8 {[%clk 0:01:13]}  Nd5 {[%clk 0:01:22]} 16. Bxe5 {[%clk 0:01:03]}  e6 {[%clk 0:01:17]} 17. a4 {[%clk 0:01:00]}  f6 {[%clk 0:01:14]} 18. Bg3 {[%clk 0:00:59]}  bxa4 {[%clk 0:01:05]} 19. c4 {[%clk 0:00:59]}  Nb4 {[%clk 0:01:05]} 20. O-O-O {[%clk 0:00:58]}  Bc5 {[%clk 0:01:01]} 21. Nc7 {[%clk 0:00:55]}  Ke7 {[%clk 0:00:56]} 22. Rhe1 {[%clk 0:00:52]}  h5 {[%clk 0:00:56]} 23. h4 {[%clk 0:00:49]}  Rc8 {[%clk 0:00:55]} 24. Kb1 {[%clk 0:00:44]}  e5 {[%clk 0:00:37]} 25. Nd5+ {[%clk 0:00:40]}  Nxd5 {[%clk 0:00:37]} 26. cxd5 {[%clk 0:00:33]}  Bb4 {[%clk 0:00:35]} 27. Re2 {[%clk 0:00:29]}  Bf5+ {[%clk 0:00:34]} 28. Ka1 {[%clk 0:00:28]}  Kd6 {[%clk 0:00:33]} 29. f3 {[%clk 0:00:20]}  a3 {[%clk 0:00:34]} 30. Be1 {[%clk 0:00:20]}  axb2+ {[%clk 0:00:30]} 31. Kxb2 {[%clk 0:00:21]}  Bc5 {[%clk 0:00:29]} 32. Bc3 {[%clk 0:00:19]}  Ra8 {[%clk 0:00:16]} 33. Ra1 {[%clk 0:00:19]}  Rxa1 {[%clk 0:00:16]} 34. Kxa1 {[%clk 0:00:20]}  b5 {[%clk 0:00:17]} 35. Rb2 {[%clk 0:00:18]}  Kxd5 {[%clk 0:00:17]} 36. Ra2 {[%clk 0:00:13]}  b4 {[%clk 0:00:17]} 37. Bb2 {[%clk 0:00:14]}  Kc4 {[%clk 0:00:17]} 38. Ra8 {[%clk 0:00:13]}  Bd4 {[%clk 0:00:16]} 39. Rg8 {[%clk 0:00:11]}  Kb3 {[%clk 0:00:16]} 40. Bxd4 {[%clk 0:00:11]}  exd4 {[%clk 0:00:16]} 41. Rd8 {[%clk 0:00:08]}  d3 {[%clk 0:00:17]} 42. g4 {[%clk 0:00:09]}  hxg4 {[%clk 0:00:16]} 43. fxg4 {[%clk 0:00:09]}  Be4 {[%clk 0:00:16]} 44. g5 {[%clk 0:00:09]}  fxg5 {[%clk 0:00:16]} 45. hxg5 {[%clk 0:00:10]}  Kc2 {[%clk 0:00:17]} 46. Rc8+ {[%clk 0:00:08]}  Kd1 {[%clk 0:00:17]} 47. Kb2 {[%clk 0:00:09]}  d2 {[%clk 0:00:17]} 48. Re8 {[%clk 0:00:08]}  Bg6 {[%clk 0:00:16]} 49. Re7 {[%clk 0:00:08]}  Bd3 {[%clk 0:00:15]} 50. Re3 {[%clk 0:00:07]}  Be2 {[%clk 0:00:15]} 51. Rh3 {[%clk 0:00:02]}  Ke1 {[%clk 0:00:15]} 52. Rh1+ {[%clk 0:00:02]}  Bf1 {[%clk 0:00:15]} 53. Rh4 {[%clk 0:00:02]}  d1=Q {[%clk 0:00:16]} 0-1


[Site "https://www.chess.com"]

[Event "Titled Tuesday Blitz April 19 Early 2022"]
[White "Dobre, Claudiu-Cristian"]
[Black "Samsonkin, Artiom"]
[WhiteFideId "1211854"]
[BlackFideId "13503111"]
[WhiteElo "2207"]
[BlackElo "2513"]
[Result "1-0"]
[Round "05"]
[TimeControl "180+1"]
[Date "2022.04.19"]
[WhiteClock "0:00:16"]
[BlackClock "0:00:01"]

1. c4 {[%clk 0:03:00]}  Nf6 {[%clk 0:02:59]} 2. Nc3 {[%clk 0:03:00]}  e6 {[%clk 0:02:59]} 3. e4 {[%clk 0:03:00]}  d5 {[%clk 0:02:59]} 4. e5 {[%clk 0:02:59]}  d4 {[%clk 0:03:00]} 5. exf6 {[%clk 0:02:59]}  dxc3 {[%clk 0:03:01]} 6. fxg7 {[%clk 0:02:59]}  cxd2+ {[%clk 0:02:58]} 7. Qxd2 {[%clk 0:03:00]}  Qxd2+ {[%clk 0:02:56]} 8. Bxd2 {[%clk 0:03:00]}  Bxg7 {[%clk 0:02:56]} 9. O-O-O {[%clk 0:03:00]}  Nc6 {[%clk 0:02:46]} 10. Nf3 {[%clk 0:03:00]}  e5 {[%clk 0:02:35]} 11. Bd3 {[%clk 0:02:59]}  Be6 {[%clk 0:02:30]} 12. Bc3 {[%clk 0:02:57]}  O-O-O {[%clk 0:02:22]} 13. b3 {[%clk 0:02:38]}  Rhg8 {[%clk 0:02:17]} 14. Kc2 {[%clk 0:02:29]}  Bh8 {[%clk 0:01:55]} 15. g3 {[%clk 0:02:25]}  Bg4 {[%clk 0:01:24]} 16. Be4 {[%clk 0:01:54]}  Rxd1 {[%clk 0:01:22]} 17. Rxd1 {[%clk 0:01:54]}  f5 {[%clk 0:01:13]} 18. Bd5 {[%clk 0:01:54]}  Re8 {[%clk 0:01:09]} 19. Re1 {[%clk 0:01:53]}  e4 {[%clk 0:00:53]} 20. Bxc6 {[%clk 0:01:29]}  bxc6 {[%clk 0:00:44]} 21. Nd4 {[%clk 0:01:16]}  c5 {[%clk 0:00:24]} 22. Nb5 {[%clk 0:01:16]}  a6 {[%clk 0:00:20]} 23. Bxh8 {[%clk 0:00:58]}  axb5 {[%clk 0:00:21]} 24. Bf6 {[%clk 0:00:53]}  bxc4 {[%clk 0:00:20]} 25. bxc4 {[%clk 0:00:53]}  Re6 {[%clk 0:00:21]} 26. Bg5 {[%clk 0:00:52]}  Ra6 {[%clk 0:00:20]} 27. Kb2 {[%clk 0:00:48]}  Ra4 {[%clk 0:00:18]} 28. Kb3 {[%clk 0:00:47]}  Rb4+ {[%clk 0:00:18]} 29. Kc3 {[%clk 0:00:47]}  Ra4 {[%clk 0:00:19]} 30. Kb3 {[%clk 0:00:46]}  Ra6 {[%clk 0:00:17]} 31. Be3 {[%clk 0:00:45]}  Rd6 {[%clk 0:00:16]} 32. Kc2 {[%clk 0:00:39]}  Ra6 {[%clk 0:00:11]} 33. Ra1 {[%clk 0:00:39]}  Ra5 {[%clk 0:00:10]} 34. a4 {[%clk 0:00:37]}  Kb7 {[%clk 0:00:10]} 35. Kb3 {[%clk 0:00:36]}  Kc6 {[%clk 0:00:06]} 36. Bd2 {[%clk 0:00:34]}  Ra8 {[%clk 0:00:07]} 37. a5 {[%clk 0:00:32]}  Rb8+ {[%clk 0:00:07]} 38. Kc2 {[%clk 0:00:32]}  Be2 {[%clk 0:00:08]} 39. Ra4 {[%clk 0:00:30]}  Bd3+ {[%clk 0:00:08]} 40. Kc3 {[%clk 0:00:29]}  Kb7 {[%clk 0:00:04]} 41. Bf4 {[%clk 0:00:25]}  Rc8 {[%clk 0:00:04]} 42. a6+ {[%clk 0:00:21]}  Ka7 {[%clk 0:00:04]} 43. Ra5 {[%clk 0:00:21]}  c6 {[%clk 0:00:04]} 44. Be3 {[%clk 0:00:20]}  Kb6 {[%clk 0:00:04]} 45. Ra2 {[%clk 0:00:19]}  Ra8 {[%clk 0:00:03]} 46. Rb2+ {[%clk 0:00:17]}  Kxa6 {[%clk 0:00:03]} 47. Bxc5 {[%clk 0:00:18]}  Rd8 {[%clk 0:00:01]} 48. Rb6+ {[%clk 0:00:17]}  Ka5 {[%clk 0:00:02]} 49. Rxc6 {[%clk 0:00:17]}  Rb8 {[%clk 0:00:01]} 50. Rc7 {[%clk 0:00:16]} 1-0


[Site "https://www.chess.com"]

[Event "Titled Tuesday Blitz April 19 Early 2022"]
[White "Donchenko, Alexander"]
[Black "Grischuk, Alexander"]
[WhiteFideId "24603295"]
[BlackFideId "4126025"]
[WhiteElo "2539"]
[BlackElo "2762"]
[Result "0-1"]
[Round "05"]
[TimeControl "180+1"]
[Date "2022.04.19"]
[WhiteClock "0:00:31"]
[BlackClock "0:01:11"]

1. e4 {[%clk 0:03:00]}  e6 {[%clk 0:03:00]} 2. Qe2 {[%clk 0:02:58]}  c5 {[%clk 0:02:59]} 3. g3 {[%clk 0:02:58]}  Nc6 {[%clk 0:02:59]} 4. c3 {[%clk 0:02:58]}  g6 {[%clk 0:02:56]} 5. Bg2 {[%clk 0:02:58]}  Bg7 {[%clk 0:02:56]} 6. d3 {[%clk 0:02:57]}  d6 {[%clk 0:02:54]} 7. Nf3 {[%clk 0:02:54]}  Nge7 {[%clk 0:02:48]} 8. O-O {[%clk 0:02:48]}  e5 {[%clk 0:02:43]} 9. Na3 {[%clk 0:02:42]}  O-O {[%clk 0:02:42]} 10. Be3 {[%clk 0:02:32]}  f5 {[%clk 0:02:32]} 11. Qd2 {[%clk 0:02:27]}  Kh8 {[%clk 0:01:36]} 12. Bh6 {[%clk 0:02:16]}  f4 {[%clk 0:01:25]} 13. Bxg7+ {[%clk 0:02:16]}  Kxg7 {[%clk 0:01:26]} 14. d4 {[%clk 0:02:14]}  cxd4 {[%clk 0:01:25]} 15. cxd4 {[%clk 0:02:14]}  Bg4 {[%clk 0:01:25]} 16. dxe5 {[%clk 0:01:18]}  dxe5 {[%clk 0:01:25]} 17. Qc3 {[%clk 0:01:02]}  Bxf3 {[%clk 0:01:25]} 18. Qxf3 {[%clk 0:01:02]}  Nd4 {[%clk 0:01:24]} 19. Qg4 {[%clk 0:00:56]}  Nec6 {[%clk 0:01:20]} 20. Rfd1 {[%clk 0:00:47]}  h5 {[%clk 0:01:13]} 21. Qh3 {[%clk 0:00:44]}  Qf6 {[%clk 0:01:13]} 22. Nc4 {[%clk 0:00:32]}  Rf7 {[%clk 0:01:12]} 23. Nd6 {[%clk 0:00:31]}  Qxd6 {[%clk 0:01:11]} 0-1


[Site "https://www.chess.com"]

[Event "Titled Tuesday Blitz April 19 Early 2022"]
[White "Ezat, Mohamed"]
[Black "Chandratreya, Prachiti"]
[WhiteFideId "10600906"]
[BlackFideId "46611215"]
[WhiteElo "2386"]
[BlackElo "1737"]
[Result "1-0"]
[Round "05"]
[TimeControl "180+1"]
[Date "2022.04.19"]
[WhiteClock "0:00:29"]
[BlackClock "0:01:18"]

1. d4 {[%clk 0:02:24]}  Nf6 {[%clk 0:02:55]} 2. c4 {[%clk 0:02:24]}  g6 {[%clk 0:02:55]} 3. Nc3 {[%clk 0:02:23]}  Bg7 {[%clk 0:02:55]} 4. e4 {[%clk 0:02:22]}  d6 {[%clk 0:02:56]} 5. Be2 {[%clk 0:02:23]}  O-O {[%clk 0:02:56]} 6. Bg5 {[%clk 0:02:23]}  e5 {[%clk 0:02:56]} 7. dxe5 {[%clk 0:02:22]}  dxe5 {[%clk 0:02:56]} 8. Qxd8 {[%clk 0:02:23]}  Rxd8 {[%clk 0:02:55]} 9. Bxf6 {[%clk 0:02:24]}  Bxf6 {[%clk 0:02:54]} 10. Nd5 {[%clk 0:02:25]}  Rxd5 {[%clk 0:02:54]} 11. cxd5 {[%clk 0:02:24]}  c6 {[%clk 0:02:52]} 12. Rc1 {[%clk 0:02:24]}  Bd7 {[%clk 0:02:49]} 13. Nf3 {[%clk 0:02:23]}  Kg7 {[%clk 0:02:48]} 14. Bc4 {[%clk 0:02:21]}  a5 {[%clk 0:02:37]} 15. O-O {[%clk 0:02:17]}  a4 {[%clk 0:02:37]} 16. Rfd1 {[%clk 0:02:15]}  h5 {[%clk 0:02:33]} 17. h3 {[%clk 0:02:11]}  Na6 {[%clk 0:02:28]} 18. dxc6 {[%clk 0:02:07]}  Bxc6 {[%clk 0:02:27]} 19. Bd5 {[%clk 0:02:05]}  Bxd5 {[%clk 0:02:23]} 20. Rxd5 {[%clk 0:02:04]}  b6 {[%clk 0:01:59]} 21. Rb5 {[%clk 0:01:56]}  a3 {[%clk 0:01:52]} 22. b4 {[%clk 0:01:47]}  Rb8 {[%clk 0:01:45]} 23. Rc6 {[%clk 0:01:42]}  Be7 {[%clk 0:01:44]} 24. Nxe5 {[%clk 0:01:33]}  Nxb4 {[%clk 0:01:41]} 25. Rc7 {[%clk 0:01:33]}  Bd6 {[%clk 0:01:30]} 26. Rxf7+ {[%clk 0:01:30]}  Kg8 {[%clk 0:01:30]} 27. Ra7 {[%clk 0:01:16]}  Nxa2 {[%clk 0:01:28]} 28. Nxg6 {[%clk 0:00:33]}  Nc3 {[%clk 0:01:26]} 29. Rg5 {[%clk 0:00:32]}  Nxe4 {[%clk 0:01:23]} 30. Rxh5 {[%clk 0:00:30]}  Bc5 {[%clk 0:01:18]} 31. Rh8# {[%clk 0:00:29]} 1-0


[Site "https://www.chess.com"]